[Event "The Allsvenskan 2024/25 Div I 3: SS Manhem II - Linkopings ASS"]
[Site "Goteborgs Schackcentrum, Vegatan 20, Gothenburg, Sweden"]
[Date "2025.03.16"]
[Round "1.1"]
[White "Andersson, Mats"]
[Black "Lennerstad, Allan"]
[Result "1-0"]
[TimeControl "90 minutes for 40 moves + 30 minutes for the rest of the game + 30 seconds per move from move one."]
[WhiteTitle "FM"]
[WhiteFideId "1700561"]
[BlackFideId "1723774"]
[WhiteElo "2263"]
[BlackElo "1996"]

1. e4 {[%clk 01:30:55]} {[%emt 00:00:05]} c5 {[%clk 01:30:49]} {[%emt
00:00:10]} 2. Nf3 {[%clk 01:30:52]} {[%emt 00:00:34]} d6 {[%clk 01:31:12]}
{[%emt 00:00:07]} 3. Bb5+ {[%clk 01:30:44]} {[%emt 00:00:37]} Nc6 {[%clk
01:30:22]} {[%emt 00:01:19]} 4. O-O {[%clk 01:30:50]} {[%emt 00:00:25]} a6
{[%clk 01:28:11]} {[%emt 00:02:41]} 5. Bxc6+ {[%clk 01:29:21]} {[%emt
00:01:59]} bxc6 {[%clk 01:28:23]} {[%emt 00:00:19]} 6. d4 {[%clk 01:28:05]}
{[%emt 00:01:46]} cxd4 {[%clk 01:26:27]} {[%emt 00:02:26]} 7. Qxd4 {[%clk
01:28:22]} {[%emt 00:00:12]} e5 {[%clk 01:22:42]} {[%emt 00:04:16]} 8. Qd3
{[%clk 01:23:48]} {[%emt 00:05:03]} Be7 {[%clk 01:19:13]} {[%emt 00:04:00]} 9.
c4 {[%clk 01:14:08]} {[%emt 00:10:09]} h6 {[%clk 01:17:05]} {[%emt 00:02:39]}
10. Nc3 {[%clk 01:10:41]} {[%emt 00:03:57]} Nf6 {[%clk 01:08:20]} {[%emt
00:09:15]} 11. Rd1 {[%clk 01:06:32]} {[%emt 00:04:39]} c5 {[%clk 01:00:28]}
{[%emt 00:08:22]} 12. Nd2 {[%clk 00:58:18]} {[%emt 00:08:42]} O-O {[%clk
00:56:24]} {[%emt 00:04:35]} 13. Nf1 {[%clk 00:58:35]} {[%emt 00:00:13]} Re8
{[%clk 00:55:42]} {[%emt 00:01:13]} 14. Ne3 {[%clk 00:57:34]} {[%emt 00:01:30]}
Bf8 {[%clk 00:55:18]} {[%emt 00:00:54]} 15. f3 {[%clk 00:54:37]} {[%emt
00:03:26]} Rb8 {[%clk 00:49:53]} {[%emt 00:05:57]} 16. b3 {[%clk 00:54:15]}
{[%emt 00:00:50]} Bb7 {[%clk 00:40:37]} {[%emt 00:09:48]} 17. Bd2 {[%clk
00:53:05]} {[%emt 00:01:38]} Re6 {[%clk 00:39:26]} {[%emt 00:01:42]} 18. Be1
{[%clk 00:52:33]} {[%emt 00:01:02]} Ne8 {[%clk 00:36:21]} {[%emt 00:03:36]} 19.
Rab1 {[%clk 00:46:37]} {[%emt 00:06:23]} Rg6 {[%clk 00:33:15]} {[%emt
00:03:38]} 20. Ncd5 {[%clk 00:38:12]} {[%emt 00:08:54]} a5 {[%clk 00:29:06]}
{[%emt 00:04:40]} 21. a3 {[%clk 00:26:12]} {[%emt 00:12:29]} Bc6 {[%clk
00:26:32]} {[%emt 00:03:05]} 22. Qc3 {[%clk 00:23:44]} {[%emt 00:02:57]} Ra8
{[%clk 00:22:56]} {[%emt 00:04:08]} 23. b4 {[%clk 00:17:20]} {[%emt 00:06:52]}
axb4 {[%clk 00:22:32]} {[%emt 00:00:55]} 24. axb4 {[%clk 00:17:43]} {[%emt
00:00:06]} cxb4 {[%clk 00:20:10]} {[%emt 00:02:54]} 25. Nxb4 {[%clk 00:17:40]}
{[%emt 00:00:32]} Bd7 {[%clk 00:18:12]} {[%emt 00:02:29]} 26. Nbd5 {[%clk
00:14:58]} {[%emt 00:03:11]} Be6 {[%clk 00:17:00]} {[%emt 00:01:44]} 27. c5
{[%clk 00:14:20]} {[%emt 00:01:07]} Bxd5 {[%clk 00:13:57]} {[%emt 00:03:33]} 28.
Rxd5 {[%clk 00:09:59]} {[%emt 00:04:50]} Rc8 {[%clk 00:10:02]} {[%emt
00:04:26]} 29. c6 {[%clk 00:09:16]} {[%emt 00:01:11]} Qc7 {[%clk 00:09:50]}
{[%emt 00:00:44]} 30. Rc1 {[%clk 00:09:04]} {[%emt 00:00:41]} Qb6 {[%clk
00:06:15]} {[%emt 00:04:06]} 31. Bf2 {[%clk 00:08:13]} {[%emt 00:01:20]} Nc7
{[%clk 00:06:00]} {[%emt 00:00:46]} 32. Rd2 {[%clk 00:07:15]} {[%emt 00:01:27]}
Nb5 {[%clk 00:04:38]} {[%emt 00:01:53]} 33. Nd5 {[%clk 00:02:52]} {[%emt
00:04:51]} Nxc3 {[%clk 00:03:50]} {[%emt 00:01:20]} 34. Bxb6 {[%clk 00:02:24]}
{[%emt 00:00:57]} Na4 {[%clk 00:03:00]} {[%emt 00:01:21]} 35. c7 {[%clk
00:02:16]} {[%emt 00:00:38]} Re6 {[%clk 00:02:40]} {[%emt 00:00:50]} 36. Ra2
{[%clk 00:02:03]} {[%emt 00:00:41]} Nc5 {[%clk 00:02:58]} {[%emt 00:00:14]} 37.
Bxc5 {[%clk 00:02:29]} {[%emt 00:00:04]} dxc5 {[%clk 00:03:08]} {[%emt
00:00:20]} 38. Rb1 {[%clk 00:02:01]} {[%emt 00:00:57]} Bd6 {[%clk 00:02:41]}
{[%emt 00:00:58]} 39. Rb7 {[%clk 00:02:09]} {[%emt 00:00:20]} c4 {[%clk
00:02:14]} {[%emt 00:00:59]} 40. Kf1 {[%clk 00:02:02]} {[%emt 00:00:37]} Ree8
{[%clk 00:01:51]} {[%emt 00:00:53]} 41. Ke2 {[%clk 00:01:37]} {[%emt 00:00:53]}
f5 {[%clk 00:26:20]} {[%emt 00:06:03]} 42. Ra6 {[%clk 00:30:03]} {[%emt
00:02:02]} Bc5 {[%clk 00:26:18]} {[%emt 00:00:33]} 43. exf5 {[%clk 00:24:56]}
{[%emt 00:05:36]} Kf7 {[%clk 00:25:25]} {[%emt 00:01:25]} 44. Rc6 {[%clk
00:24:32]} {[%emt 00:00:53]} Bd4 {[%clk 00:24:31]} {[%emt 00:01:25]} 45. Rxc4
{[%clk 00:24:46]} {[%emt 00:00:14]} Rf8 {[%clk 00:23:17]} {[%emt 00:01:46]} 46.
Kd3 {[%clk 00:23:14]} {[%emt 00:01:59]} Ke8 {[%clk 00:23:36]} {[%emt 00:00:13]}
47. Rxd4 {[%clk 00:22:04]} {[%emt 00:01:40]} exd4 {[%clk 00:23:57]} {[%emt
00:00:09]} 48. Nb6 {[%clk 00:22:28]} {[%emt 00:00:05]} Ke7 {[%clk 00:24:10]}
{[%emt 00:00:18]} 49. Nxc8+ {[%clk 00:21:36]} {[%emt 00:01:23]} Rxc8 {[%clk
00:24:34]} {[%emt 00:00:06]} 50. Kxd4 {[%clk 00:21:30]} {[%emt 00:00:35]} Kd6
{[%clk 00:24:58]} {[%emt 00:00:08]} 51. Ra7 {[%clk 00:21:40]} {[%emt 00:00:16]}
Kc6 {[%clk 00:24:54]} {[%emt 00:00:37]} 52. Ra2 {[%clk 00:22:00]} {[%emt
00:00:09]} 1-0

[Event "The Allsvenskan 2024/25 Div I 3: SS Manhem II - Linkopings ASS"]
[Site "Goteborgs Schackcentrum, Vegatan 20, Gothenburg, Sweden"]
[Date "2025.03.16"]
[Round "1.2"]
[White "Abrahamsson, Patrik"]
[Black "Klashed, Martin"]
[Result "0-1"]
[TimeControl "90 minutes for 40 moves + 30 minutes for the rest of the game + 30 seconds per move from move one."]
[WhiteFideId "1716484"]
[BlackFideId "1702033"]
[WhiteElo "1966"]
[BlackElo "2190"]

1. e4 {[%clk 01:30:54]} {[%emt 00:00:05]} c5 {[%clk 01:30:50]} {[%emt
00:00:12]} 2. d4 {[%clk 01:31:15]} {[%emt 00:00:08]} cxd4 {[%clk 01:31:14]}
{[%emt 00:00:07]} 3. c3 {[%clk 01:31:39]} {[%emt 00:00:05]} Nf6 {[%clk
01:31:22]} {[%emt 00:00:23]} 4. e5 {[%clk 01:31:58]} {[%emt 00:00:11]} Nd5
{[%clk 01:31:45]} {[%emt 00:00:07]} 5. cxd4 {[%clk 01:30:55]} {[%emt 00:01:33]}
d6 {[%clk 01:31:29]} {[%emt 00:00:46]} 6. Nf3 {[%clk 01:30:59]} {[%emt
00:00:25]} Nc6 {[%clk 01:31:20]} {[%emt 00:00:40]} 7. Bc4 {[%clk 01:27:55]}
{[%emt 00:03:33]} Nb6 {[%clk 01:30:07]} {[%emt 00:01:43]} 8. Bb3 {[%clk
01:26:10]} {[%emt 00:02:16]} dxe5 {[%clk 01:29:14]} {[%emt 00:01:24]} 9. dxe5
{[%clk 01:25:30]} {[%emt 00:01:09]} Qxd1+ {[%clk 01:29:20]} {[%emt 00:00:24]}
10. Bxd1 {[%clk 01:19:43]} {[%emt 00:06:17]} Bg4 {[%clk 01:29:00]} {[%emt
00:00:49]} 11. O-O {[%clk 01:19:39]} {[%emt 00:00:34]} e6 {[%clk 01:26:10]}
{[%emt 00:03:20]} 12. Nc3 {[%clk 01:19:42]} {[%emt 00:00:28]} Be7 {[%clk
01:26:02]} {[%emt 00:00:38]} 13. Bf4 {[%clk 01:17:47]} {[%emt 00:02:23]} O-O
{[%clk 01:23:27]} {[%emt 00:03:06]} 14. Be2 {[%clk 01:16:13]} {[%emt 00:02:04]}
Rfd8 {[%clk 01:16:06]} {[%emt 00:07:51]} 15. Rfd1 {[%clk 01:15:33]} {[%emt
00:01:10]} h6 {[%clk 01:06:22]} {[%emt 00:10:15]} 16. Ne4 {[%clk 01:12:35]}
{[%emt 00:03:28]} Nd5 {[%clk 00:38:25]} {[%emt 00:28:26]} 17. Bg3 {[%clk
01:10:49]} {[%emt 00:02:16]} Kf8 {[%clk 00:33:17]} {[%emt 00:05:38]} 18. Rac1
{[%clk 01:10:06]} {[%emt 00:01:13]} a6 {[%clk 00:30:22]} {[%emt 00:03:26]} 19.
Nc5 {[%clk 01:06:31]} {[%emt 00:04:05]} Bxc5 {[%clk 00:30:03]} {[%emt
00:00:49]} 20. Rxc5 {[%clk 01:06:56]} {[%emt 00:00:04]} Ndb4 {[%clk 00:24:28]}
{[%emt 00:06:05]} 21. h3 {[%clk 01:02:40]} {[%emt 00:04:45]} Bxf3 {[%clk
00:18:35]} {[%emt 00:06:24]} 22. Bxf3 {[%clk 00:57:42]} {[%emt 00:05:28]} Rxd1+
{[%clk 00:18:49]} {[%emt 00:00:16]} 23. Bxd1 {[%clk 00:58:06]} {[%emt
00:00:06]} Nxa2 {[%clk 00:19:00]} {[%emt 00:00:19]} 24. Bb3 {[%clk 00:53:59]}
{[%emt 00:04:37]} Nab4 {[%clk 00:19:17]} {[%emt 00:00:14]} 25. f4 {[%clk
00:53:46]} {[%emt 00:00:42]} Rd8 {[%clk 00:18:33]} {[%emt 00:01:14]} 26. Bh4
{[%clk 00:51:14]} {[%emt 00:03:02]} Rd2 {[%clk 00:15:29]} {[%emt 00:03:33]} 27.
f5 {[%clk 00:42:28]} {[%emt 00:09:17]} Rxb2 {[%clk 00:13:21]} {[%emt 00:02:38]}
28. Bc4 {[%clk 00:38:22]} {[%emt 00:04:36]} b6 {[%clk 00:07:34]} {[%emt
00:06:17]} 29. Rxc6 {[%clk 00:37:02]} {[%emt 00:01:50]} Nxc6 {[%clk 00:07:56]}
{[%emt 00:00:08]} 30. fxe6 {[%clk 00:37:17]} {[%emt 00:00:15]} fxe6 {[%clk
00:07:50]} {[%emt 00:00:36]} 31. Bxe6 {[%clk 00:34:41]} {[%emt 00:03:06]} Nxe5
{[%clk 00:07:06]} {[%emt 00:01:13]} 32. Bc8 {[%clk 00:34:26]} {[%emt 00:00:46]}
a5 {[%clk 00:06:29]} {[%emt 00:01:07]} 33. Bf2 {[%clk 00:34:00]} {[%emt
00:00:56]} Rb1+ {[%clk 00:05:50]} {[%emt 00:01:09]} 34. Kh2 {[%clk 00:34:21]}
{[%emt 00:00:08]} a4 {[%clk 00:05:38]} {[%emt 00:00:43]} 35. Bd4 {[%clk
00:33:30]} {[%emt 00:01:21]} Nc6 {[%clk 00:05:40]} {[%emt 00:00:29]} 36. Bc3
{[%clk 00:32:57]} {[%emt 00:01:03]} b5 {[%clk 00:04:15]} {[%emt 00:01:54]} 37.
Bf5 {[%clk 00:31:51]} {[%emt 00:01:36]} Rb3 {[%clk 00:04:00]} {[%emt 00:00:45]}
38. Ba1 {[%clk 00:31:46]} {[%emt 00:00:35]} a3 {[%clk 00:03:17]} {[%emt
00:01:13]} 39. Be6 {[%clk 00:29:21]} {[%emt 00:02:55]} Rb1 {[%clk 00:03:13]}
{[%emt 00:00:33]} 40. Bc3 {[%clk 00:28:11]} {[%emt 00:01:41]} b4 {[%clk
00:03:21]} {[%emt 00:00:23]} 41. Bd2 {[%clk 00:28:27]} {[%emt 00:00:14]} b3
{[%clk 00:03:25]} {[%emt 00:00:26]} 42. Bf4 {[%clk 00:27:32]} {[%emt 00:01:25]}
a2 {[%clk 00:02:49]} {[%emt 00:01:05]} 43. Bd6+ {[%clk 00:24:51]} {[%emt
00:03:11]} Ke8 {[%clk 00:01:39]} {[%emt 00:01:40]} 0-1

[Event "The Allsvenskan 2024/25 Div I 3: SS Manhem II - Linkopings ASS"]
[Site "Goteborgs Schackcentrum, Vegatan 20, Gothenburg, Sweden"]
[Date "2025.03.16"]
[Round "1.3"]
[White "Pepic, Rizo"]
[Black "Lisander, Stefan"]
[Result "0-1"]
[TimeControl "90 minutes for 40 moves + 30 minutes for the rest of the game + 30 seconds per move from move one."]
[WhiteFideId "906760"]
[BlackFideId "1711733"]
[WhiteElo "2159"]
[BlackElo "1999"]

1. d4 {[%clk 01:30:15]} {[%emt 00:00:44]} d5 {[%clk 01:30:49]} {[%emt
00:00:10]} 2. c4 {[%clk 01:30:33]} {[%emt 00:00:13]} c6 {[%clk 01:31:10]}
{[%emt 00:00:08]} 3. Nc3 {[%clk 01:30:39]} {[%emt 00:00:24]} Nf6 {[%clk
01:31:10]} {[%emt 00:00:31]} 4. Nf3 {[%clk 01:28:18]} {[%emt 00:02:51]} e6
{[%clk 01:31:21]} {[%emt 00:00:19]} 5. Bg5 {[%clk 01:28:10]} {[%emt 00:00:37]}
dxc4 {[%clk 01:31:38]} {[%emt 00:00:14]} 6. a4 {[%clk 01:26:47]} {[%emt
00:01:54]} Bb4 {[%clk 01:29:03]} {[%emt 00:03:04]} 7. Bxf6 {[%clk 01:26:39]}
{[%emt 00:00:38]} Qxf6 {[%clk 01:28:19]} {[%emt 00:01:13]} 8. e3 {[%clk
01:23:51]} {[%emt 00:03:19]} Bxc3+ {[%clk 01:25:15]} {[%emt 00:03:34]} 9. bxc3
{[%clk 01:24:18]} {[%emt 00:00:03]} b5 {[%clk 01:25:32]} {[%emt 00:00:12]} 10.
Qb1 {[%clk 01:23:46]} {[%emt 00:01:02]} a6 {[%clk 01:24:26]} {[%emt 00:01:37]}
11. Ne5 {[%clk 01:23:51]} {[%emt 00:00:25]} O-O {[%clk 01:21:49]} {[%emt
00:03:06]} 12. Be2 {[%clk 01:23:48]} {[%emt 00:00:33]} Qe7 {[%clk 01:19:45]}
{[%emt 00:02:35]} 13. O-O {[%clk 01:17:21]} {[%emt 00:06:57]} f6 {[%clk
01:16:34]} {[%emt 00:03:40]} 14. Nf3 {[%clk 01:17:46]} {[%emt 00:00:05]} Nd7
{[%clk 01:12:07]} {[%emt 00:04:58]} 15. Nd2 {[%clk 01:11:04]} {[%emt 00:07:11]}
Nb6 {[%clk 01:11:16]} {[%emt 00:01:22]} 16. Bd1 {[%clk 01:01:06]} {[%emt
00:10:27]} Nd5 {[%clk 01:07:49]} {[%emt 00:03:58]} 17. Qb2 {[%clk 01:01:08]}
{[%emt 00:00:26]} e5 {[%clk 01:03:02]} {[%emt 00:05:19]} 18. e4 {[%clk
01:00:54]} {[%emt 00:00:45]} Nf4 {[%clk 01:02:26]} {[%emt 00:01:05]} 19. axb5
{[%clk 00:53:30]} {[%emt 00:07:56]} cxb5 {[%clk 01:02:31]} {[%emt 00:00:23]} 20.
d5 {[%clk 00:52:54]} {[%emt 00:01:06]} Qc5 {[%clk 00:57:11]} {[%emt 00:05:49]}
21. Bf3 {[%clk 00:27:07]} {[%emt 00:26:17]} a5 {[%clk 00:54:06]} {[%emt
00:03:35]} 22. Qc2 {[%clk 00:23:18]} {[%emt 00:04:18]} Bd7 {[%clk 00:50:34]}
{[%emt 00:04:02]} 23. Rfd1 {[%clk 00:21:43]} {[%emt 00:02:06]} Rfc8 {[%clk
00:47:17]} {[%emt 00:03:47]} 24. g3 {[%clk 00:21:39]} {[%emt 00:00:34]} Nh3+
{[%clk 00:46:36]} {[%emt 00:01:12]} 25. Kg2 {[%clk 00:20:33]} {[%emt 00:01:36]}
Qxf2+ {[%clk 00:46:26]} {[%emt 00:00:40]} 26. Kh1 {[%clk 00:20:56]} {[%emt
00:00:06]} Qc5 {[%clk 00:43:38]} {[%emt 00:03:18]} 27. Rdb1 {[%clk 00:08:47]}
{[%emt 00:12:40]} Nf2+ {[%clk 00:43:03]} {[%emt 00:01:04]} 28. Kg1 {[%clk
00:08:45]} {[%emt 00:00:33]} Nxe4+ {[%clk 00:42:17]} {[%emt 00:01:16]} 29. Kh1
{[%clk 00:09:03]} {[%emt 00:00:10]} Nf2+ {[%clk 00:39:59]} {[%emt 00:02:49]} 30.
Kg1 {[%clk 00:09:15]} {[%emt 00:00:17]} Nd3+ {[%clk 00:37:16]} {[%emt
00:03:15]} 31. Kg2 {[%emt 00:04:18]} f5 {[%clk 00:34:48]} {[%emt 00:01:41]} 32.
Nf1 {[%clk 00:02:57]} {[%emt 00:04:17]} e4 {[%clk 00:34:10]} {[%emt 00:01:07]}
33. Bd1 {[%clk 00:03:11]} {[%emt 00:00:17]} Qxd5 {[%clk 00:33:48]} {[%emt
00:00:51]} 34. Be2 {[%clk 00:03:01]} {[%emt 00:00:41]} Qc5 {[%clk 00:31:05]}
{[%emt 00:03:12]} 35. Qd2 {[%clk 00:03:06]} {[%emt 00:00:25]} Bc6 {[%clk
00:26:30]} {[%emt 00:05:06]} 36. Qe3 {[%clk 00:02:35]} {[%emt 00:01:01]} Qxe3
{[%clk 00:25:35]} {[%emt 00:01:25]} 37. Nxe3 {[%clk 00:03:02]} {[%emt
00:00:02]} g6 {[%clk 00:25:39]} {[%emt 00:00:26]} 38. h4 {[%clk 00:03:05]}
{[%emt 00:00:27]} Kg7 {[%clk 00:25:28]} {[%emt 00:00:41]} 39. h5 {[%clk
00:03:21]} {[%emt 00:00:15]} Kf6 {[%clk 00:22:53]} {[%emt 00:03:05]} 40. hxg6
{[%clk 00:03:12]} {[%emt 00:00:40]} hxg6 {[%clk 00:22:56]} {[%emt 00:00:26]} 41.
Rh1 {[%clk 00:03:29]} {[%emt 00:00:13]} Kg7 {[%clk 00:22:55]} {[%emt 00:00:30]}
42. Ra2 {[%clk 00:03:25]} {[%emt 00:00:35]} Rh8 {[%clk 00:22:07]} {[%emt
00:01:17]} 43. Rha1 {[%clk 00:03:32]} {[%emt 00:00:24]} a4 {[%clk 00:21:55]}
{[%emt 00:00:43]} 44. Rh1 {[%clk 00:03:01]} {[%emt 00:00:59]} Rxh1 45. Kxh1
{[%clk 00:03:29]} Rh8+ {[%clk 00:21:11]} {[%emt 00:00:19]} 46. Kg2 {[%clk
00:03:09]} {[%emt 00:00:50]} Kf6 {[%clk 00:21:10]} {[%emt 00:00:30]} 47. Ra1
{[%clk 00:03:23]} {[%emt 00:00:18]} Ke5 {[%clk 00:21:15]} {[%emt 00:00:24]} 48.
Rf1 {[%clk 00:03:50]} {[%emt 00:00:04]} Bd7 {[%clk 00:14:53]} {[%emt 00:06:52]}
49. Rb1 {[%clk 00:02:50]} {[%emt 00:01:29]} g5 {[%clk 00:14:29]} {[%emt
00:00:54]} 0-1

[Event "The Allsvenskan 2024/25 Div I 3: SS Manhem II - Linkopings ASS"]
[Site "Goteborgs Schackcentrum, Vegatan 20, Gothenburg, Sweden"]
[Date "2025.03.16"]
[Round "1.4"]
[White "Olabe Odriozola, Eduardo"]
[Black "Fransson, Jorgen"]
[Result "0-1"]
[TimeControl "90 minutes for 40 moves + 30 minutes for the rest of the game + 30 seconds per move from move one."]
[WhiteFideId "2211980"]
[BlackFideId "1701827"]
[WhiteElo "1957"]
[BlackElo "2153"]

1. e4 {[%clk 01:30:54]} {[%emt 00:00:05]} c5 {[%clk 01:30:49]} {[%emt
00:00:12]} 2. Nc3 {[%clk 01:31:10]} {[%emt 00:00:14]} Nc6 {[%clk 01:31:09]}
{[%emt 00:00:09]} 3. Bc4 {[%clk 01:31:32]} {[%emt 00:00:09]} e6 {[%clk
01:30:36]} {[%emt 00:01:03]} 4. d3 {[%clk 01:31:54]} {[%emt 00:00:08]} a6
{[%clk 01:28:37]} {[%emt 00:02:28]} 5. a4 {[%clk 01:32:05]} {[%emt 00:00:20]}
Nf6 {[%clk 01:28:45]} {[%emt 00:00:22]} 6. Bg5 {[%clk 01:29:25]} {[%emt
00:03:10]} Be7 {[%clk 01:28:37]} {[%emt 00:00:38]} 7. f4 {[%clk 01:29:06]}
{[%emt 00:00:50]} h6 {[%clk 01:27:23]} {[%emt 00:01:44]} 8. Bh4 {[%clk
01:28:52]} {[%emt 00:00:43]} d5 {[%clk 01:15:51]} {[%emt 00:12:02]} 9. exd5
{[%clk 01:26:07]} {[%emt 00:03:15]} Nxd5 {[%clk 01:15:49]} {[%emt 00:00:33]} 10.
Bxe7 {[%clk 01:26:15]} {[%emt 00:00:21]} Ndxe7 {[%clk 01:14:54]} {[%emt
00:01:25]} 11. Nf3 {[%clk 01:25:59]} {[%emt 00:00:45]} O-O {[%clk 01:14:58]}
{[%emt 00:00:27]} 12. O-O {[%clk 01:26:26]} {[%emt 00:00:04]} b6 {[%clk
01:15:12]} {[%emt 00:00:15]} 13. Kh1 {[%clk 01:24:59]} {[%emt 00:01:57]} Bb7
{[%clk 01:15:11]} {[%emt 00:00:30]} 14. Qd2 {[%clk 01:15:37]} {[%emt 00:09:53]}
Qc7 {[%clk 01:13:55]} {[%emt 00:01:45]} 15. Nh4 {[%clk 01:12:56]} {[%emt
00:03:11]} Nd4 {[%clk 01:12:21]} {[%emt 00:02:05]} 16. Rae1 {[%clk 01:07:57]}
{[%emt 00:05:30]} Rad8 {[%clk 01:12:12]} {[%emt 00:00:38]} 17. Ne4 {[%clk
01:03:56]} {[%emt 00:04:31]} Kh8 {[%clk 00:59:32]} {[%emt 00:13:10]} 18. Ng3
{[%clk 00:57:56]} {[%emt 00:06:30]} b5 {[%clk 00:50:58]} {[%emt 00:09:04]} 19.
axb5 {[%clk 00:57:10]} {[%emt 00:01:16]} axb5 {[%clk 00:51:21]} {[%emt
00:00:07]} 20. Ba2 {[%clk 00:57:36]} {[%emt 00:00:04]} c4 {[%clk 00:42:37]}
{[%emt 00:09:14]} 21. f5 {[%clk 00:56:32]} {[%emt 00:01:35]} Ndxf5 {[%clk
00:42:18]} {[%emt 00:00:48]} 22. Nhxf5 {[%clk 00:56:23]} {[%emt 00:00:40]} Nxf5
{[%clk 00:42:34]} {[%emt 00:00:14]} 23. Nxf5 {[%clk 00:54:24]} {[%emt
00:02:29]} exf5 {[%clk 00:42:55]} {[%emt 00:00:07]} 24. Rxf5 {[%clk 00:53:32]}
{[%emt 00:01:23]} Qc6 {[%clk 00:40:21]} {[%emt 00:03:01]} 25. Rf3 {[%clk
00:46:49]} {[%emt 00:07:16]} Qa6 {[%clk 00:39:52]} {[%emt 00:00:58]} 26. Rh3
{[%clk 00:46:49]} {[%emt 00:00:31]} Qxa2 {[%clk 00:36:41]} {[%emt 00:03:41]} 27.
Rxh6+ {[%clk 00:42:02]} {[%emt 00:05:18]} Kg8 {[%clk 00:37:02]} {[%emt
00:00:07]} 28. Rb6 {[%clk 00:40:25]} {[%emt 00:02:08]} Rd7 {[%clk 00:29:17]}
{[%emt 00:08:15]} 29. Rxb5 {[%clk 00:40:26]} {[%emt 00:00:28]} cxd3 {[%clk
00:29:36]} {[%emt 00:00:12]} 30. cxd3 {[%clk 00:40:12]} {[%emt 00:00:44]} Qa6
{[%clk 00:26:56]} {[%emt 00:03:10]} 31. Rbe5 {[%clk 00:29:36]} {[%emt
00:11:06]} Rxd3 {[%clk 00:24:30]} {[%emt 00:02:55]} 32. Qb4 {[%clk 00:27:47]}
{[%emt 00:02:19]} Qc6 {[%clk 00:22:54]} {[%emt 00:02:06]} 33. R5e4 {[%clk
00:21:58]} {[%emt 00:06:20]} Rfd8 {[%clk 00:17:47]} {[%emt 00:05:37]} 34. h3
{[%clk 00:20:14]} {[%emt 00:02:14]} Rxh3+ {[%clk 00:05:05]} {[%emt 00:13:12]}
35. Kg1 {[%clk 00:19:23]} {[%emt 00:01:21]} Rhd3 {[%clk 00:05:01]} {[%emt
00:00:34]} 36. R1e2 {[%clk 00:18:39]} {[%emt 00:01:14]} Rd2 {[%clk 00:02:53]}
{[%emt 00:02:38]} 37. Qe7 {[%clk 00:15:43]} {[%emt 00:03:26]} Rd1+ {[%clk
00:02:39]} {[%emt 00:00:44]} 38. Kf2 {[%clk 00:15:45]} {[%emt 00:00:28]} Qb6+
{[%clk 00:02:19]} {[%emt 00:00:49]} 39. R4e3 {[%clk 00:15:49]} {[%emt
00:00:27]} R1d3 {[%clk 00:01:45]} {[%emt 00:01:04]} 40. Ke1 {[%clk 00:13:42]}
{[%emt 00:02:37]} Rd1+ {[%clk 00:00:55]} {[%emt 00:01:19]} 41. Kf2 {[%clk
00:14:08]} {[%emt 00:00:06]} R1d3 {[%clk 00:30:12]} {[%emt 00:01:12]} 42. Ke1
{[%clk 00:44:22]} {[%emt 00:00:17]} Rxe3 {[%clk 00:30:07]} {[%emt 00:00:34]} 43.
Rxe3 {[%clk 00:44:37]} {[%emt 00:00:15]} Bxg2 {[%clk 00:29:31]} {[%emt
00:01:06]} 0-1